bitfinex/quotes_SOLUSD_20240530
["timestamp","ask_amount","ask_price","bid_price","bid_amount"]
[1717108859856,2.2182,166.8,166.77,2.2186]
[1717108860259,2.2182,166.8,166.77,3.15194239]
[1717108860445,2.2182,166.8,166.77,2.2186]
[1717108860645,2.2181,166.81,166.77,2.2186]
[1717108862442,2.2182,166.8,166.78,0.98292336]
[1717108862642,2.2181,166.81,166.77,2.2186]
[1717108863069,2.2182,166.8,166.77,2.2186]
[1717108863541,1.431,166.84,166.77,0.98918067]
[1717108863742,1.431,166.84,166.76,17.98]
[1717108863938,2.2182,166.8,166.76,20.1986]
[1717108864358,2.2182,166.8,166.76,26.442]
[1717108864561,2.2182,166.8,166.76,86.442]
[1717108865365,7.68746399,166.89,166.78,17.98]
[1717108865559,7.68746399,166.89,166.79,17.98]
[1717108866345,7.68746399,166.89,166.79,77.98]
[1717108866545,1.431,166.89,166.81,2.218]
[1717108867467,1.431,166.89,166.8,20.1981]
[1717108869063,2.2176,166.85,166.8,20.1981]
[1717108869649,2.2174,166.86,166.82,77.98]
[1717108869849,2.2174,166.86,166.82,116.2078]
[1717108870171,6.25630137,166.92,166.85,17.98]
[1717108870359,2.2169,166.9,166.86,20.1973]
[1717108870766,2.2169,166.9,166.86,80.1973]
[1717108871474,2.2167,166.92,166.89,17.98]
[1717108872479,0.17604855,166.97,166.89,20.197]
[1717108872480,2.2165,166.93,166.89,20.197]
[1717108872657,2.2165,166.93,166.89,17.98]
[1717108873387,0.17604855,166.97,166.89,20.197]
[1717108873594,2.2164,166.94,166.91,17.98]
[1717108874160,2.2162,166.95,166.91,17.98]
[1717108874380,2.2163,166.94,166.91,17.98]
[1717108874683,2.2162,166.95,166.91,17.98]
[1717108875379,2.2162,166.95,166.91,20.1967]
[1717108875577,2.2162,166.95,166.92,77.98]
[1717108875765,2.2162,166.95,166.93,2.39511113]
[1717108876559,2.2164,166.94,166.89,20.1969]
[1717108876757,2.2165,166.93,166.89,20.1969]
[1717108876962,2.2166,166.92,166.89,17.98]
[1717108878071,2.2165,166.93,166.89,17.98]
[1717108878677,2.2165,166.93,166.89,20.197]
[1717108880261,2.2164,166.94,166.89,20.197]
[1717108880884,2.2165,166.93,166.89,20.197]
[1717108881371,2.2164,166.94,166.89,20.197]
[1717108882879,2.2164,166.94,166.9,1.43511221]
[1717108883459,2.2165,166.93,166.9,1.43511221]
[1717108883880,2.2165,166.93,166.89,20.197]
[1717108885380,2.2164,166.94,166.89,20.197]
[1717108886980,1.431,166.99,166.89,17.98]
[1717108887182,2.2167,166.92,166.88,2.2171]
[1717108888576,2.2165,166.93,166.89,2.217]
[1717108889080,1.431,166.99,166.9,77.98]
[1717108889081,2.216,166.97,166.9,77.98]
[1717108889288,2.216,166.97,166.93,2.2163]
[1717108890968,2.216,166.97,166.93,20.1963]
[1717108893290,2.2161,166.96,166.93,17.98]
[1717108896399,1.8508,167.03,166.93,17.98]
[1717108896400,2.216,166.97,166.93,20.1964]
[1717108896898,2.2161,166.96,166.93,17.98]
[1717108898471,2.216,166.97,166.93,17.98]
[1717108899197,2.2161,166.96,166.93,17.98]
[1717108901401,1.431,167.03,166.94,24.3088]
[1717108901695,2.2158,166.98,166.94,42.0243]
[1717108902374,2.2158,166.98,166.94,102.0243]
[1717108904773,2.2157,166.99,166.95,2.2162]
[1717108904973,2.2157,166.99,166.95,20.1962]
[1717108905186,2.2155,167.01,166.97,20.1959]
[1717108908991,2.2155,167.01,166.97,26.5009]
[1717108916114,7.68027766,167.07,166.95,17.98]
[1717108916310,7.68027766,167.07,166.95,20.1962]
[1717108916519,2.2157,166.99,166.95,20.1962]
[1717108917185,2.2157,166.99,166.95,2.2162]
[1717108917392,2.2158,166.98,166.94,20.1963]
[1717108918412,2.2158,166.98,166.95,2.2162]
[1717108918898,2.2158,166.98,166.94,20.1963]
[1717108921219,2.2158,166.98,166.94,26.5061]
[1717108921995,7.68027766,167.07,166.95,20.1962]
[1717108921996,2.2157,166.99,166.95,20.1962]
[1717108923218,2.2158,166.98,166.95,17.98]
[1717108923596,2.2158,166.98,166.95,20.1962]
[1717108926402,2.2158,166.98,166.95,17.98]
[1717108928101,2.2158,166.98,166.95,20.1962]
[1717108930015,2.2158,166.98,166.95,17.98]
[1717108930208,2.216,166.97,166.93,20.1964]
[1717108931214,2.2158,166.98,166.94,2.2163]
[1717108934826,2.2157,166.99,166.95,2.2162]
[1717108935541,2.2158,166.98,166.95,17.98]
[1717108935716,6.25038836,167.05,166.95,17.98]
[1717108936033,2.2156,167.0,166.96,2.216]
[1717108936326,2.2157,166.99,166.95,20.1961]
[1717108938318,2.2158,166.98,166.95,17.98]
[1717108945343,2.2158,166.98,166.94,20.1963]
[1717108948834,2.2156,167.0,166.96,20.196]
[1717108949138,2.2157,166.99,166.96,17.98]
[1717108949842,2.2157,166.99,166.97,17.98]
[1717108951339,2.2156,167.0,166.97,17.98]
[1717108954948,2.2157,166.99,166.97,17.98]
[1717108955545,2.2156,167.0,166.97,17.98]
[1717108955744,2.2154,167.01,166.97,20.1958]
[1717108956358,1.431,167.07,166.97,17.98]
[1717108956527,1.431,167.07,166.99,17.98]
[1717108956729,2.2153,167.02,166.99,17.98]
[1717108959055,2.2153,167.02,166.99,20.1956]
[1717108960034,2.2153,167.02,166.99,17.98]
[1717108960446,2.2151,167.04,166.99,20.1956]
[1717108960629,2.2151,167.04,167.0,20.1955]
[1717108960830,2.2151,167.04,167.0,26.825]
[1717108963231,6.24785284,167.11,167.01,80.1953]
[1717108963438,6.24785284,167.11,167.01,84.4522]
[1717108963439,2.215,167.04,167.01,84.4522]
[1717108964532,2.215,167.04,167.01,86.6676]
[1717108965570,2.2149,167.05,167.01,86.6676]
[1717108971358,2.215,167.04,167.01,24.4522]
[1717108971853,2.2149,167.05,167.01,86.6676]
[1717108972462,2.2148,167.06,167.02,2.2152]
[1717108972667,2.2149,167.05,167.02,17.98]
[1717108981188,2.2151,167.04,167.0,20.1955]
[1717108982369,2.2149,167.05,167.01,20.1953]
[1717108982763,2.215,167.04,167.01,17.98]
[1717108983269,2.2149,167.05,167.01,20.1953]
[1717108984875,2.2149,167.05,167.02,2.2152]
[1717108986963,2.2149,167.05,167.03,17.98]
[1717108987980,2.2147,167.07,167.03,20.1951]
[1717108988670,2.2147,167.07,167.03,77.98]
[1717108988871,2.2145,167.08,167.04,20.195]
[1717108989388,2.2145,167.08,167.04,20.1949]
[1717108990883,2.2146,167.07,167.04,20.1949]
[1717108991187,2.2146,167.07,167.04,17.98]
[1717108991564,2.2147,167.06,167.03,17.98]
[1717108993191,2.2147,167.06,167.02,2.2152]
[1717108993681,2.2147,167.06,167.02,20.1952]
[1717108995774,2.2147,167.06,167.03,2.2151]
[1717108995974,2.2146,167.07,167.03,2.2151]
[1717109011488,2.2145,167.08,167.04,2.215]
[1717109012314,2.2145,167.08,167.01,82.4107]
[1717109012315,2.2146,167.07,167.03,2.2151]
[1717109014991,2.2146,167.07,167.03,26.8565]
[1717109015701,2.2146,167.07,167.03,2.2151]
[1717109016015,2.2148,167.06,167.02,2.2152]
[1717109016188,2.2148,167.06,167.02,8.8766]
[1717109017715,2.2148,167.06,167.02,26.8566]
[1717109017894,2.2147,167.07,167.03,2.2151]
[1717109019025,7.03322851,167.12,167.02,26.8566]
[1717109020028,7.03322851,167.12,167.03,2.2151]
[1717109024026,7.03322851,167.12,167.02,2.2152]
[1717109024932,7.03322851,167.12,167.03,2.2151]
[1717109025639,7.03322851,167.12,167.04,0.55496818]
[1717109027143,7.03322851,167.12,167.02,2.2152]
[1717109030943,7.03322851,167.12,167.01,86.96414749]
[1717109031134,7.03322851,167.12,167.01,89.17944749]
[1717109031333,7.03322851,167.12,167.02,2.2153]
[1717109031737,2.2148,167.06,167.02,2.2153]
[1717109033166,7.03322851,167.12,167.02,8.98414749]
[1717109033349,2.2149,167.05,167.02,8.98414749]
[1717109034329,2.2148,167.06,167.02,8.98414749]
[1717109035153,2.2149,167.05,167.01,26.96414749]
[1717109036157,2.2148,167.06,167.01,29.17954749]
[1717109036754,2.2148,167.06,167.01,29.18005655]
[1717109040170,7.67809407,167.11,167.01,8.98465655]
[1717109040475,7.67809407,167.11,166.99,11.20025655]
[1717109040681,2.2155,167.0,166.99,8.98465655]
[1717109041179,1.431,167.05,166.96,8.98465655]
[1717109041352,2.2156,167.0,166.96,8.98465655]
[1717109041758,2.2156,167.0,166.95,11.20075655]
[1717109042270,2.2157,166.99,166.95,11.20075655]
[1717109042462,2.2157,166.99,166.95,2.2161]
[1717109044568,2.2157,166.99,166.94,2.2163]
[1717109044965,2.2158,166.98,166.94,2.2163]
[1717109045479,2.2158,166.98,166.93,8.98465655]
[1717109045480,7.68025291,167.05,166.93,8.98465655]
[1717109045653,7.68025291,167.05,166.92,8.98465655]
[1717109045654,6.24925291,167.05,166.92,8.98465655]
[1717109045859,6.24925291,167.05,166.89,5.997]
[1717109045860,2.2164,166.94,166.9,8.98465655]
[1717109046254,2.2164,166.94,166.89,11.20155655]
[1717109046460,2.2162,166.95,166.9,2.2168]
[1717109047499,2.2162,166.95,166.88,24.4167]
[1717109047500,2.2163,166.94,166.89,2.2169]
[1717109048482,2.2165,166.93,166.88,26.6338]
[1717109049465,2.2165,166.93,166.89,2.217]
[1717109049667,2.2164,166.94,166.89,2.217]
[1717109050979,2.2165,166.93,166.89,2.217]
[1717109051164,2.2161,166.96,166.91,17.98]
[1717109051483,26.56342474,167.04,166.92,2.2165]
[1717109051484,2.216,166.97,166.92,2.2165]
[1717109052163,2.216,166.97,166.93,2.2164]
[1717109053962,2.2158,166.98,166.94,2.2162]
[1717109054787,2.2158,166.98,166.93,20.1964]
[1717109056487,2.2158,166.98,166.94,2.2163]
[1717109057073,2.2157,166.99,166.94,80.1963]
[1717109057390,2.2157,166.99,166.95,17.98]
[1717109057573,2.2158,166.98,166.95,17.98]
[1717109058168,2.2158,166.98,166.94,2.2162]
[1717109058369,2.2158,166.98,166.94,20.1962]
[1717109060087,1.431,167.04,166.94,20.1962]
[1717109060088,2.2157,166.99,166.94,20.1962]
[1717109061071,2.2158,166.98,166.94,20.1962]
[1717109063194,2.2157,166.99,166.94,20.1962]
[1717109066366,2.2157,166.99,166.95,2.2162]
[1717109068077,2.2158,166.98,166.92,17.98]
[1717109068301,2.216,166.97,166.93,2.2164]
[1717109068463,2.2159,166.98,166.93,2.2164]
[1717109068669,2.2159,166.98,166.94,2.2163]
[1717109069098,2.2159,166.98,166.93,2.2164]
[1717109069268,2.216,166.97,166.93,2.2164]
[1717109070480,2.2159,166.98,166.93,2.2164]
[1717109070789,2.2158,166.98,166.94,2.2162]
[1717109071777,2.2158,166.98,166.93,2.2164]
[1717109073903,2.2159,166.97,166.93,2.2164]
[1717109074070,2.2159,166.97,166.92,2.2165]
[1717109077197,1.431,167.04,166.92,2.2165]
[1717109077198,2.2161,166.96,166.92,2.2165]
[1717109079398,2.2161,166.96,166.91,20.1967]
[1717109079605,2.2161,166.96,166.91,2.2167]
[1717109079804,2.2162,166.95,166.91,2.2167]
[1717109080391,2.2162,166.95,166.89,22.4139]
[1717109080392,2.2162,166.95,166.9,2.2168]
[1717109089130,2.2162,166.95,166.91,20.1967]
[1717109091118,2.2162,166.95,166.91,17.98]
[1717109092397,2.2162,166.95,166.91,20.1967]
[1717109094112,2.2162,166.95,166.91,17.98]
[1717109096613,2.2163,166.94,166.91,17.98]
[1717109102341,2.2164,166.93,166.9,17.98]
[1717109102913,2.2166,166.92,166.88,17.98]
[1717109103141,1.8508,166.99,166.88,17.98]
[1717109103448,1.8508,166.99,166.87,8.99411327]
[1717109103449,2.2168,166.91,166.87,8.99411327]
[1717109103634,2.2168,166.91,166.87,11.21131327]
[1717109104014,2.2168,166.91,166.88,17.98]
[1717109104317,2.2166,166.92,166.88,17.98]
[1717109105106,2.2166,166.92,166.88,20.1971]
[1717109107124,2.2165,166.93,166.88,20.1971]
[1717109109742,2.2165,166.93,166.88,2.2171]
[1717109110439,1.431,166.98,166.87,8.98940639]
[1717109110635,2.2168,166.91,166.87,8.98940639]
[1717109111026,2.2168,166.91,166.86,29.18660639]
[1717109111945,1.431,166.98,166.86,29.18660639]
[1717109115519,1.431,166.98,166.86,20.1972]
[1717109115725,1.431,166.98,166.86,29.17954085]
[1717109116424,2.2168,166.91,166.86,29.17897971]
[1717109118544,1.431,166.98,166.87,2.2172]
[1717109118741,2.2167,166.92,166.87,2.2172]
[1717109119329,2.2167,166.91,166.87,2.2172]
[1717109121261,2.2167,166.91,166.87,11.19897971]
[1717109121633,2.2167,166.91,166.87,8.98177971]
[1717109122651,2.2167,166.91,166.87,29.17897971]
[1717109122850,2.2167,166.91,166.87,20.1972]
[1717109123048,2.2167,166.91,166.87,29.17687118]
[1717109125266,2.2167,166.91,166.88,0.42405355]
[1717109125554,2.2167,166.91,166.87,29.17687118]
[1717109128565,2.2167,166.92,166.87,20.1972]
[1717109128772,2.2167,166.92,166.87,29.17687118]
[1717109129474,2.2167,166.92,166.88,2.2171]
[1717109129765,2.2167,166.92,166.88,80.1971]
[1717109130058,2.2165,166.93,166.89,2.217]
[1717109130250,2.2165,166.93,166.89,20.197]
[1717109130638,2.2165,166.93,166.89,17.98]
[1717109131556,2.2161,166.96,166.93,17.98]
[1717109131852,25.13242474,167.07,166.93,17.98]
[1717109131853,2.2156,167.0,166.96,2.216]
[1717109132046,2.2157,166.99,166.95,20.1961]
[1717109132245,2.2156,167.0,166.95,20.1961]
[1717109132452,2.2157,166.99,166.95,20.1961]
[1717109132648,2.2157,166.99,166.95,17.98]
[1717109133286,2.2158,166.98,166.95,17.98]
[1717109134252,1.431,167.02,166.95,77.98]
[1717109134456,1.431,167.06,166.97,2.2159]
[1717109134768,2.2154,167.01,166.95,77.98]
[1717109134953,2.2153,167.02,166.98,17.98]
[1717109135153,2.2152,167.03,166.98,20.1958]
[1717109135873,1.60704855,167.09,166.99,80.79997837]
[1717109136571,2.2151,167.04,166.99,80.79997837]
[1717109137873,2.2151,167.04,166.99,80.1956]
[1717109138745,2.2151,167.04,166.99,86.8551]
[1717109139345,2.2151,167.04,167.0,20.1955]
[1717109140675,2.2151,167.04,167.0,24.6395]
[1717109140868,2.2151,167.04,167.02,17.98]
[1717109141370,0.17604855,167.09,167.02,17.98]
[1717109141554,2.2146,167.07,167.03,2.215]
[1717109141945,2.2146,167.07,167.02,17.98]
[1717109141946,2.2146,167.07,167.02,20.1952]
[1717109143186,2.2147,167.06,167.02,20.1952]
[1717109143481,0.17604855,167.09,167.02,17.98]
[1717109143482,2.2149,167.05,167.02,17.98]
[1717109143684,2.2149,167.05,167.01,2.2154]
[1717109144879,2.2148,167.06,167.01,2.2154]
[1717109145083,2.2148,167.06,167.01,20.1954]
[1717109146866,2.2148,167.06,167.02,2.2153]
[1717109150694,2.2146,167.07,167.02,2.2153]
[1717109150860,2.2146,167.07,167.03,2.2151]
[1717109151498,2.2146,167.07,167.02,2.2152]
[1717109155498,0.17604855,167.09,167.01,17.98]
[1717109155666,0.17604855,167.09,167.01,20.1953]
[1717109155870,2.2148,167.06,167.02,2.2152]
[1717109156697,2.2146,167.07,167.02,2.2152]
[1717109156869,2.2146,167.07,167.03,2.2151]
[1717109159087,2.2146,167.07,167.02,17.98]
[1717109159088,2.2146,167.07,167.02,20.1952]
[1717109161393,2.2148,167.06,167.02,17.98]
[1717109161982,2.2148,167.06,167.01,77.98]
[1717109162191,2.2149,167.05,167.01,80.1953]
[1717109162673,2.2148,167.06,167.01,80.1953]
[1717109163004,2.2149,167.05,167.01,80.1953]
[1717109165599,2.2148,167.06,167.02,2.2152]
[1717109166575,2.2148,167.06,167.02,20.1952]
[1717109166803,2.2147,167.07,167.03,2.2151]
[1717109166974,2.2147,167.07,167.03,20.1951]
[1717109172689,2.2147,167.07,167.03,17.98]
[1717109172897,2.2147,167.07,167.02,20.1952]
[1717109173914,2.2147,167.06,167.02,17.98]
[1717109174093,0.7857729,167.12,167.02,17.98]
[1717109174287,2.2148,167.06,167.02,17.98]
[1717109174711,2.2149,167.05,167.02,17.98]
[1717109175098,2.2149,167.05,167.01,62.2153]
[1717109175297,2.2149,167.05,167.01,80.1953]
[1717109175697,2.2148,167.06,167.01,80.1953]
[1717109176019,2.2148,167.06,167.02,2.2153]
[1717109176388,2.2148,167.06,167.01,80.1954]
[1717109176722,2.2149,167.05,167.01,80.1954]
[1717109178190,2.2148,167.06,167.01,80.1954]
[1717109179110,2.2149,167.05,167.0,2.2155]
[1717109179313,0.7857729,167.12,166.99,2.2156]
[1717109179513,1.431,167.11,167.02,17.98]
[1717109179722,2.2149,167.05,167.02,17.98]
[1717109180015,2.2149,167.05,166.99,96.01]
[1717109180204,2.2149,167.05,167.0,17.98]
[1717109180800,2.2148,167.06,167.02,17.98]
[1717109182395,1.431,167.11,167.0,17.98]
[1717109182717,2.2149,167.05,167.0,20.1954]
[1717109185717,2.2149,167.05,167.01,2.2154]
[1717109187110,2.2148,167.06,167.01,2.2154]
[1717109188707,2.2148,167.06,167.01,20.1954]
[1717109189108,2.2149,167.05,167.01,20.1954]
[1717109189303,2.2148,167.06,167.01,20.1954]
[1717109191628,2.2149,167.05,167.01,20.1954]
[1717109191803,2.2148,167.06,167.01,20.1954]
[1717109193529,2.2149,167.05,167.0,20.1955]
[1717109195529,2.2149,167.05,167.01,20.1954]
[1717109202215,2.2149,167.05,167.01,2.2154]
[1717109202408,2.2149,167.05,167.0,2.2155]
[1717109202610,0.17604855,167.1,167.0,2.2155]
[1717109202833,2.2149,167.05,167.0,2.2155]
[1717109205237,2.2149,167.05,167.0,2.51486586]
[1717109206222,2.2149,167.05,167.01,2.2153]
[1717109208550,2.2149,167.05,167.0,2.51486586]
[1717109209037,0.59584855,167.1,166.98,17.98]
[1717109209229,2.2152,167.03,166.98,20.1957]
[1717109209838,2.2152,167.03,166.99,2.2156]
[1717109210930,2.2152,167.03,166.98,20.1957]
[1717109214543,2.2152,167.03,166.99,2.2156]
[1717109217334,2.215,167.04,166.99,2.2156]
[1717109217538,2.215,167.04,167.0,2.2155]
[1717109217737,0.59584855,167.1,167.0,2.2155]
[1717109217933,2.2149,167.05,167.0,2.2155]
[1717109218647,0.59584855,167.1,167.0,2.2155]
[1717109218951,2.215,167.05,167.0,2.2155]
[1717109219621,2.215,167.04,167.0,20.1955]
[1717109220735,2.215,167.04,167.0,17.98]
[1717109221036,2.215,167.04,167.0,20.1955]
[1717109221230,2.2149,167.05,167.0,20.1955]
[1717109221428,2.2149,167.05,167.02,17.98]
[1717109221849,2.2147,167.07,167.02,20.1952]
[1717109222053,2.2146,167.08,167.03,20.195]
[1717109222238,2.2146,167.07,167.03,17.98]
[1717109222836,2.2146,167.07,167.03,20.1951]
[1717109223247,2.2146,167.07,167.03,80.1951]
[1717109223644,2.2145,167.08,167.03,80.1951]
[1717109226537,2.2146,167.07,167.03,80.1951]
[1717109227566,2.2145,167.08,167.03,80.1951]
[1717109228055,0.17604855,167.1,167.05,17.98]
[1717109228387,0.17604855,167.1,167.06,77.98]
[1717109229050,2.2143,167.09,167.06,77.98]
[1717109229245,0.17604855,167.1,167.06,80.1947]
[1717109229862,2.39024855,167.1,167.06,80.1947]
[1717109230669,0.17604855,167.1,167.06,80.1947]
[1717109233648,0.17604855,167.1,167.06,20.1947]
[1717109236967,0.17604855,167.1,167.07,20.1946]
[1717109237354,0.17604855,167.1,167.07,17.98]
[1717109238172,0.17604855,167.1,167.07,2.2146]
[1717109239257,0.17604855,167.1,167.06,2.2147]
[1717109239458,2.39034855,167.1,167.06,2.2147]
[1717109242469,2.39034855,167.1,167.05,2.2148]
[1717109242971,2.39034855,167.1,167.06,2.2147]
[1717109244980,0.17604855,167.1,167.06,2.2147]
[1717109249384,0.17604855,167.1,167.07,2.2146]
[1717109249770,0.17604855,167.1,167.06,2.2147]
[1717109251663,0.17604855,167.1,167.06,20.1947]
[1717109252289,2.39024855,167.1,167.06,20.1947]
[1717109252783,0.17604855,167.1,167.06,20.1947]
[1717109254091,0.17604855,167.1,167.06,17.98]
[1717109254281,0.17604855,167.1,167.09,20.1943]
[1717109255070,0.17604855,167.1,167.09,102.0349]
[1717109256162,0.17604855,167.1,167.09,138.0449]
[1717109256367,0.17604855,167.1,167.09,142.4736]
[1717109258294,0.17604855,167.1,167.09,165.5842]
[1717109271004,0.14778291,167.1,167.09,165.5842]
[1717109275708,0.7857729,167.12,167.11,136.131]
[1717109275886,0.7857729,167.12,167.11,150.2629]
[1717109278705,0.7857729,167.12,167.11,136.131]
[1717109280390,0.7857729,167.12,167.11,159.0209]
[1717109280590,0.7857729,167.12,167.11,150.2629]
[1717109284391,0.7857729,167.12,167.11,166.6309]
[1717109290027,0.93355581,167.12,167.11,166.6309]
[1717109291027,0.93355581,167.12,167.11,159.0209]
[1717109291318,0.93355581,167.12,167.11,166.6309]
[1717109296730,0.93355581,167.12,167.11,159.0209]
[1717109296906,3.6435,167.23,167.19,60.0]
[1717109297103,1.431,167.23,167.22,17.98]
[1717109297315,1.431,167.23,167.22,18.32424598]
[1717109297709,1.431,167.23,167.22,17.98]
[1717109297914,3.6433,167.25,167.22,17.98]
[1717109298225,1.431,167.25,167.22,17.98]
[1717109299205,3.6432,167.25,167.22,17.98]
[1717109300320,1.431,167.25,167.22,17.98]
[1717109300709,1.431,167.25,167.22,20.1926]
[1717109303524,2.2121,167.26,167.22,17.98]
[1717109304430,2.212,167.27,167.22,20.1926]
[1717109304630,1.712,167.27,167.22,20.1926]
[1717109306510,0.7857729,167.28,167.22,20.1926]
[1717109308137,0.7857729,167.28,167.23,17.98]
[1717109309013,2.2167729,167.28,167.22,17.98]
[1717109309225,2.2167729,167.28,167.2,20.1929]
[1717109309727,2.2167729,167.28,167.21,80.1927]
[1717109311620,2.2167729,167.28,167.21,20.1927]
[1717109312020,2.2167729,167.28,167.2,20.1928]
[1717109314706,2.2167729,167.28,167.21,20.1927]
[1717109318453,2.2167729,167.28,167.22,2.2126]
[1717109321718,2.2167729,167.28,167.21,2.2127]
[1717109322040,2.2167729,167.28,167.21,20.1927]
[1717109322824,2.2167729,167.28,167.22,2.2126]
[1717109323740,2.2167729,167.28,167.21,20.1927]
[1717109325542,2.2167729,167.28,167.22,2.2126]
[1717109329430,0.7857729,167.28,167.22,80.1926]
[1717109330448,0.7857729,167.28,167.23,20.1924]
[1717109332240,0.7857729,167.28,167.23,17.98]
[1717109333223,0.7857729,167.28,167.23,20.1925]
[1717109333430,0.7857729,167.28,167.24,20.1923]
[1717109333644,0.7857729,167.28,167.24,17.98]
[1717109338332,0.7857729,167.28,167.21,17.98]
[1717109338544,0.7857729,167.28,167.21,20.1926]
[1717109339044,0.7857729,167.28,167.24,17.98]
[1717109340034,0.7857729,167.28,167.24,77.98]
[1717109341861,0.7857729,167.28,167.24,80.1923]
[1717109343539,0.7857729,167.28,167.24,20.1923]
[1717109346562,0.7857729,167.28,167.21,17.98]
[1717109346745,0.7857729,167.28,167.23,20.1925]
[1717109348964,0.7857729,167.28,167.23,17.98]
[1717109349671,0.7857729,167.28,167.22,2.2125]
[1717109350750,0.7857729,167.28,167.21,20.1927]
[1717109352058,0.7857729,167.28,167.22,2.2126]
[1717109353272,0.7857729,167.28,167.19,20.1929]
[1717109353446,1.431,167.27,167.19,20.1929]
[1717109354873,1.431,167.27,167.19,17.98]
[1717109355354,1.431,167.27,167.19,20.193]
[1717109355545,1.431,167.27,167.19,17.98]
[1717109357483,1.431,167.27,167.16,17.98]
[1717109357767,1.431,167.27,167.13,47.17092401]
[1717109357981,1.431,167.27,167.12,36.01]
[1717109358172,1.431,167.27,167.14,2.2136]
[1717109358681,1.431,167.27,167.14,20.1936]
[1717109359651,1.431,167.27,167.13,2.2137]
[1717109359969,1.431,167.25,167.12,20.1939]
[1717109360480,1.431,167.25,167.13,2.2138]
[1717109360657,1.431,167.25,167.13,20.1938]
[1717109363753,1.431,167.25,167.14,2.2136]
[1717109364382,1.431,167.25,167.13,20.1937]
[1717109366963,6.25009849,167.24,167.13,20.1937]
[1717109367574,6.25009849,167.24,167.11,60.0]
[1717109367575,1.431,167.23,167.11,20.1941]
[1717109367875,1.431,167.23,167.11,17.98]
[1717109369370,1.431,167.23,167.1,20.1941]
[1717109369683,1.431,167.21,167.1,20.1941]
[1717109369856,1.431,167.21,167.09,20.1943]
[1717109370063,1.431,167.21,167.06,8.94552295]
[1717109370260,1.431,167.21,167.06,11.16022295]
[1717109370456,1.431,167.21,167.07,2.2146]
[1717109370969,1.431,167.21,167.07,20.1946]
[1717109371275,1.431,167.21,167.07,17.98]
[1717109371679,1.431,167.21,167.08,2.2144]
[1717109372171,1.431,167.21,167.07,2.2145]
[1717109375469,1.431,167.21,167.09,17.98]
[1717109375667,1.431,167.21,167.09,20.1942]
[1717109377161,6.25179598,167.2,167.1,2.2142]
[1717109377363,6.25179598,167.2,167.11,20.194]
[1717109377561,1.431,167.21,167.11,20.194]
[1717109377971,1.431,167.21,167.11,17.98]
[1717109379576,1.431,167.21,167.11,20.194]
[1717109383187,1.431,167.21,167.11,17.98]
[1717109385905,1.431,167.21,167.11,20.1941]
[1717109386393,1.431,167.21,167.11,17.98]
[1717109386574,1.431,167.21,167.13,17.98]
[1717109386774,1.431,167.21,167.11,17.98]
[1717109387078,1.431,167.21,167.11,20.194]
[1717109390093,1.431,167.21,167.11,17.98]
[1717109390495,1.431,167.21,167.09,20.1943]
[1717109390682,1.431,167.21,167.08,20.1944]
[1717109395081,1.431,167.21,167.09,2.2143]
[1717109396102,1.431,167.19,167.06,17.98]
[1717109396409,1.431,167.19,167.07,2.2145]
[1717109397416,6.25257863,167.18,167.07,2.2145]
[1717109398983,6.25257863,167.18,167.06,2.2147]